bitfinex/quotes_ETHUSD_20240715
["timestamp","ask_amount","ask_price","bid_price","bid_amount"]
[1721084182111,0.60125855,3481.7,3481.3,0.55]
[1721084182271,0.60125855,3481.9,3481.3,0.55]
[1721084182477,0.60125855,3482.0,3481.2,2.87251]
[1721084182676,0.60125855,3482.1,3481.3,0.629522]
[1721084182880,0.60125855,3482.0,3481.4,0.55]
[1721084183116,0.29534049,3482.2,3481.6,2.87218]
[1721084183404,0.29534049,3482.2,3481.7,0.55]
[1721084183627,0.29534049,3482.2,3481.8,2.87206]
[1721084183775,0.29534049,3482.2,3481.9,3.764176]
[1721084184094,0.29534049,3482.2,3482.0,0.55]
[1721084184295,0.29534049,3482.2,3482.1,2.87183]
[1721084184502,0.60125855,3483.4,3482.1,2.8631]
[1721084184702,0.90188782,3483.5,3482.2,3.4217]
[1721084184703,0.60125855,3483.5,3482.2,3.4217]
[1721084184904,0.60125855,3483.5,3482.3,0.62848]
[1721084185103,0.60125855,3483.4,3482.5,2.87146]
[1721084185316,1.19595078,3483.6,3482.6,2.87141]
[1721084185624,0.60125855,3483.5,3482.7,0.55]
[1721084185972,1.19595078,3483.6,3482.6,2.8714]
[1721084186285,0.29517989,3483.6,3482.7,0.89214]
[1721084186610,0.05724078,3483.5,3482.7,0.89214]
[1721084186787,2.372,3483.4,3482.7,0.55]
[1721084186987,0.60125855,3483.2,3482.4,0.55]
[1721084187195,0.60125855,3483.2,3482.2,0.55]
[1721084187426,0.60125855,3483.1,3482.2,0.55]
[1721084187579,0.60125855,3483.2,3482.2,0.55]
[1721084187783,0.60125855,3483.1,3482.2,1.2135996]
[1721084188021,2.372,3483.4,3482.2,4.0853096]
[1721084188022,0.60125855,3483.2,3482.2,4.0853096]
[1721084188243,0.60125855,3483.3,3482.2,4.0853096]
[1721084189028,0.60125855,3483.2,3482.2,1.2135996]
[1721084189327,0.60125855,3483.3,3482.3,0.40854096]
[1721084189509,0.60125855,3483.3,3482.4,0.55]
[1721084189696,0.89643844,3483.6,3482.5,2.2859]
[1721084189895,0.89643844,3483.6,3482.6,0.55]
[1721084190207,0.29517989,3483.6,3482.6,0.55]
[1721084190407,0.29517989,3483.6,3482.7,3.49948662]
[1721084190610,0.29517989,3483.6,3482.8,0.55]
[1721084191234,0.29517989,3483.6,3482.9,2.87114]
[1721084191399,0.29517989,3483.6,3483.0,0.55]
[1721084191904,0.29517989,3483.6,3482.7,0.570739]
[1721084191905,0.29517989,3483.6,3482.9,0.55]
[1721084192109,0.29517989,3483.6,3482.8,0.55]
[1721084192430,0.29517989,3483.6,3482.7,2.87132]
[1721084192718,0.29517989,3483.6,3482.8,1.120722]
[1721084192934,0.29517989,3483.6,3482.6,0.55]
[1721084193084,0.29517989,3483.6,3482.7,2.87133]
[1721084193288,0.29517989,3483.6,3482.8,0.55]
[1721084193700,0.29517989,3483.6,3482.6,0.55]
[1721084195418,0.29517989,3483.6,3482.6,3.4214]
[1721084195626,0.29517989,3483.6,3482.7,0.57073]
[1721084195837,0.29517989,3483.6,3482.8,0.55]
[1721084197028,2.2654,3483.5,3482.8,0.55]
[1721084197391,2.2654,3483.5,3482.5,0.55]
[1721084197889,2.2654,3483.5,3482.3,0.40854096]
[1721084197890,0.05724078,3483.4,3482.3,0.40854096]
[1721084198086,0.26178207,3483.3,3481.9,0.342206]
[1721084198394,0.05724078,3483.2,3481.9,0.342206]
[1721084198909,3.38236681,3483.2,3481.6,2.418]
[1721084199097,2.2654,3483.0,3481.4,2.8724]
[1721084199292,2.92841078,3482.9,3481.2,5.29052]
[1721084199604,3.52831437,3482.9,3481.2,5.29052]
[1721084199798,0.65714437,3482.9,3481.3,2.87246]
[1721084200001,1.05909736,3482.9,3481.4,0.816298]
[1721084200631,3.93027736,3482.9,3481.4,0.816298]
[1721084200842,5.4698,3482.7,3480.7,2.4943]
[1721084201045,0.05724078,3482.6,3480.7,2.4943]
[1721084201348,0.65714437,3482.6,3480.8,2.87285]
[1721084201531,0.59990359,3482.5,3481.0,2.87272]
[1721084201739,6.06970359,3482.7,3481.0,2.87272]
[1721084202044,1.41305556,3482.6,3481.1,0.574561]
[1721084202247,6.36931686,3482.7,3481.1,0.574561]
[1721084202248,2.73941327,3482.7,3481.4,2.87235]
[1721084202460,0.29961327,3482.7,3481.6,5.36652]
[1721084202630,0.29961327,3482.7,3481.7,0.55]
[1721084202833,0.29961327,3482.7,3481.9,2.87194]
[1721084203014,0.29961327,3482.7,3481.6,2.4943]
[1721084203015,0.29961327,3482.7,3482.0,3.42189]
[1721084203217,0.29961327,3482.7,3482.2,2.87167]
[1721084203415,0.29512603,3483.2,3482.3,0.55]
[1721084203917,0.35236681,3483.2,3482.3,0.55]
[1721084204113,0.35236681,3483.2,3481.6,5.36652]
[1721084204114,0.35236681,3483.2,3482.2,0.55]
[1721084204352,0.35236681,3483.2,3482.0,0.55]
[1721084204566,0.35236681,3483.2,3482.1,0.342198]
[1721084204744,2.4398,3483.1,3482.2,0.55]
[1721084204952,2.49704078,3483.1,3482.0,0.55]
[1721084205425,2.49704078,3483.1,3481.7,3.55]
[1721084205814,2.4398,3483.1,3481.7,6.42207]
[1721084206655,3.03960413,3483.1,3481.7,3.42207]
[1721084206969,2.4398,3483.1,3482.2,2.87174]
[1721084207263,0.29512603,3483.2,3482.3,0.55]
[1721084207427,0.29512603,3483.2,3482.5,2.87149]
[1721084207617,0.29512603,3483.2,3482.6,3.4214]
[1721084207841,0.29512603,3483.2,3482.7,0.34214]
[1721084208171,0.29512603,3483.2,3482.8,3.42123]
[1721084208453,0.29512603,3483.2,3482.9,2.87114]
[1721084208619,0.29512603,3483.2,3483.0,0.55]
[1721084209354,0.29512603,3483.2,3483.0,3.42108]
[1721084209549,0.29512603,3483.2,3483.1,0.629231]
[1721084209724,0.29512603,3483.2,3483.1,1.179231]
[1721084211715,0.29512603,3483.2,3482.7,0.34214]
[1721084211919,0.29512603,3483.2,3482.5,2.87143]
[1721084212143,0.29512603,3483.2,3482.6,0.55]
[1721084212352,0.29512603,3483.2,3482.2,5.87174]
[1721084212528,0.29512603,3483.2,3481.8,0.342207]
[1721084212529,0.29512603,3483.2,3482.0,2.87185]
[1721084213457,0.29512603,3483.2,3482.1,2.87182]
[1721084213627,0.29512603,3483.2,3482.2,0.574379]
[1721084214031,0.29512603,3483.2,3482.1,2.87182]
[1721084214363,0.95217094,3483.2,3481.8,0.342207]
[1721084214559,0.59980413,3483.1,3481.8,0.342207]
[1721084214720,0.05724078,3483.0,3481.8,0.342207]
[1721084215459,0.65704491,3483.0,3481.8,0.342207]
[1721084215665,1.11595262,3483.0,3481.9,0.3214337]
[1721084216254,0.51614849,3483.0,3481.9,0.3214337]
[1721084216457,0.59980413,3482.8,3481.3,2.87248]
[1721084216634,0.59980413,3482.7,3481.3,2.87248]
[1721084216830,0.37559103,3482.6,3481.4,3.98081]
[1721084217064,0.67064085,3482.6,3481.4,3.98081]
[1721084217429,1.27044498,3482.6,3481.4,3.98081]
[1721084217934,0.67064085,3482.6,3481.5,3.42232]
[1721084218257,0.29504982,3482.6,3481.5,3.42232]
[1721084218479,0.89485395,3482.6,3481.5,0.55]
[1721084218776,0.89485395,3482.6,3481.5,3.42229]
[1721084219270,0.89485395,3482.6,3480.8,2.87284]
[1721084219271,2.3866,3482.4,3480.8,2.87284]
[1721084219487,0.59980413,3482.0,3480.6,5.16225]
[1721084219779,0.59980413,3482.1,3480.6,5.16225]
[1721084219979,0.59980413,3482.0,3480.9,2.87282]
[1721084220191,0.65704491,3482.0,3481.0,0.57458]
[1721084220475,2.98640413,3481.8,3480.7,2.87298]
[1721084220784,2.3866,3481.8,3480.7,2.87298]
[1721084221748,2.3866,3481.8,3480.7,2.87297]
[1721084221953,2.3866,3481.8,3480.8,0.55]
[1721084222134,2.3866,3481.8,3480.6,0.55]
[1721084222135,0.05724078,3481.7,3480.6,0.55]
[1721084222567,2.98640413,3481.8,3480.6,3.42304]
[1721084222784,0.05724078,3481.7,3480.6,3.42304]
[1721084222984,0.05724078,3481.7,3480.6,0.55]
[1721084223137,0.65704491,3481.7,3480.6,1.192313]
[1721084224361,0.59980413,3481.6,3480.6,1.192313]
[1721084224727,0.05724078,3481.5,3480.1,2.87346]
[1721084224879,2.98640413,3481.4,3480.0,2.87354]
[1721084225077,0.05724078,3481.3,3480.0,2.87354]
[1721084225278,0.05724078,3481.3,3480.1,0.574726]
[1721084225576,2.3866,3481.4,3479.7,2.87379]
[1721084225577,0.05724078,3481.2,3479.7,2.87379]
[1721084225811,0.59980413,3481.1,3479.8,2.87371]
[1721084226007,0.8997062,3481.3,3479.8,2.87371]
[1721084226008,0.05724078,3481.0,3479.8,2.87371]
[1721084226210,0.05724078,3481.0,3479.9,2.87364]
[1721084227286,0.05724078,3481.0,3480.0,0.55]
[1721084227492,0.29525361,3480.9,3480.1,0.342364]
[1721084227701,0.29525361,3480.9,3480.2,3.48084334]
[1721084227908,0.29525361,3480.9,3480.4,2.87322]
[1721084228093,0.29525361,3480.9,3480.6,2.87299]
[1721084228487,0.29525361,3480.9,3480.7,0.55]
[1721084228707,0.29525361,3480.9,3480.7,0.892322]
[1721084228888,0.29525361,3480.9,3480.7,0.55]
[1721084229094,0.29525361,3480.9,3480.4,0.55]
[1721084229684,0.29525361,3480.9,3480.2,0.55]
[1721084230024,0.29525361,3480.9,3480.1,3.215764]
[1721084230025,0.29525361,3480.9,3480.1,0.342364]
[1721084230380,0.29525361,3480.9,3480.4,2.87321]
[1721084230579,2.431,3480.8,3479.5,3.557]
[1721084230931,2.431,3480.8,3479.0,0.45025908]
[1721084230932,0.05724078,3480.7,3479.4,2.9946047]
[1721084231782,2.431,3480.8,3479.4,2.9946047]
[1721084231984,2.431,3480.8,3479.5,3.42393]
[1721084232215,2.431,3480.8,3479.6,0.64185347]
[1721084232535,0.05724078,3480.7,3479.6,0.64185347]
[1721084232695,0.05724078,3480.7,3479.4,0.1205647]
[1721084233458,2.3045,3480.6,3479.4,0.1205647]
[1721084233605,0.05724078,3480.5,3479.4,0.1205647]
[1721084235237,0.05724078,3480.5,3479.5,0.55]
[1721084235396,0.83917408,3480.4,3479.5,0.55]
[1721084235597,0.05724078,3480.3,3479.5,0.55]
[1721084236010,0.83917408,3480.4,3479.5,0.55]
[1721084236921,2.3045,3480.6,3479.5,0.55]
[1721084237450,0.05724078,3480.5,3479.5,0.55]
[1721084237954,2.3817,3480.4,3479.5,0.55]
[1721084238105,0.05724078,3480.3,3479.5,0.55]
[1721084238308,0.05724078,3480.2,3479.4,0.1205647]
[1721084238501,0.6336729,3480.2,3479.4,0.1205647]
[1721084239022,0.57643212,3480.2,3479.4,0.1205647]
[1721084239200,2.3817,3480.4,3479.4,0.1205647]
[1721084239201,2.3817,3480.4,3479.8,2.8737]
[1721084239405,2.3817,3480.4,3479.9,0.55]
[1721084240410,2.43894078,3480.4,3479.4,0.1205647]
[1721084240607,2.74233828,3480.4,3479.4,0.1205647]
[1721084240974,3.39063828,3480.4,3479.4,0.1205647]
[1721084241108,5.4117,3480.3,3479.4,0.1205647]
[1721084241446,2.3817,3480.1,3479.4,0.1205647]
[1721084241671,2.3817,3479.9,3479.4,0.1205647]
[1721084241804,0.54689408,3479.8,3479.4,0.1205647]
[1721084242008,0.05724078,3479.7,3479.4,0.1205647]
[1721084242659,2.3817,3479.9,3479.4,0.1205647]
[1721084244019,0.05724078,3479.8,3479.4,0.1205647]
[1721084246740,3.08724078,3479.8,3479.4,0.1205647]
[1721084246944,5.417,3479.5,3479.4,0.1205647]
[1721084247120,5.47424078,3479.5,3479.4,0.1205647]
[1721084248174,5.71244443,3479.5,3479.4,0.1205647]
[1721084248320,2.68244443,3479.5,3479.4,0.1205647]
[1721084250157,0.29544443,3479.5,3479.4,0.1205647]
[1721084251056,0.29544443,3479.5,3479.4,0.6705647]
[1721084251403,0.29544443,3479.5,3479.4,1.02504217]
[1721084253293,0.29544443,3479.5,3479.4,3.89909217]
[1721084253858,0.29544443,3479.5,3479.4,6.77314217]
[1721084255102,0.29544443,3479.5,3479.4,1.02504217]
[1721084255258,0.29544443,3479.5,3479.4,0.6705647]
[1721084256699,0.29544443,3479.5,3479.4,3.5446147]
[1721084256875,0.29544443,3479.5,3479.4,6.4186647]
[1721084258169,0.29544443,3479.5,3479.4,0.6705647]
[1721084261705,0.29544443,3479.5,3479.4,6.4186647]
[1721084261912,0.29544443,3479.5,3479.4,7.63347875]
[1721084267342,0.29544443,3479.5,3479.4,4.75942875]
[1721084267713,0.29544443,3479.5,3479.4,1.33537875]
[1721084267902,0.29544443,3479.5,3479.4,0.1205647]
[1721084270276,0.29544443,3479.5,3479.4,0.6705647]
[1721084272137,0.29544443,3479.5,3479.4,3.5446147]
[1721084272359,0.29544443,3479.5,3479.4,0.6705647]
[1721084273353,0.29544443,3479.5,3479.4,3.5446147]
[1721084273569,0.29544443,3479.5,3479.4,6.77887374]
[1721084273771,0.29544443,3479.5,3479.4,3.90482374]
[1721084274479,0.29544443,3479.5,3479.4,1.03077374]
[1721084274643,0.29544443,3479.5,3479.4,0.1205647]
[1721084275293,0.89702599,3479.5,3479.4,0.1205647]
[1721084275576,0.29544443,3479.5,3479.4,0.1205647]
[1721084275952,0.29544443,3479.5,3479.4,0.6705647]
[1721084281513,0.29544443,3479.5,3479.4,9.0906647]
[1721084281717,0.29544443,3479.5,3479.4,10.24174117]
[1721084282375,0.6022073,3480.4,3479.6,2.87383]
[1721084282581,0.6022073,3480.4,3479.7,0.55]
[1721084282582,0.29533592,3479.9,3479.7,0.55]
[1721084282798,0.6022073,3480.4,3479.7,3.4238]
[1721084283022,0.2953349,3479.9,3479.7,3.4238]
[1721084283223,0.2953349,3479.9,3479.8,0.34238]
[1721084283525,0.6022073,3480.4,3479.8,0.34238]
[1721084283526,0.29540369,3480.0,3479.8,0.89238]
[1721084283684,0.29540369,3480.0,3479.9,0.55]
[1721084283885,0.29540369,3480.0,3479.4,0.1205647]
[1721084283886,2.76440369,3480.0,3479.4,0.1205647]
[1721084284111,3.36661099,3480.0,3479.4,0.1205647]
[1721084284324,2.76440369,3480.0,3479.4,0.1205647]
[1721084284827,0.29540369,3480.0,3479.4,0.1205647]
[1721084285181,0.89761099,3480.0,3479.5,0.55]
[1721084285382,0.29540369,3480.0,3479.5,0.55]
[1721084285629,0.89761099,3480.0,3479.5,0.55]
[1721084286485,0.05724078,3479.9,3479.4,0.1205647]
[1721084286693,0.6022073,3479.7,3479.4,0.1205647]
[1721084286994,0.6022073,3479.5,3479.4,0.1205647]
[1721084287303,0.90331095,3479.6,3479.4,0.1205647]
[1721084287693,0.90331095,3479.5,3479.4,0.1205647]
[1721084288104,1.80207311,3479.7,3479.4,0.1205647]
[1721084288105,0.90331095,3479.6,3479.4,0.1205647]
[1721084288513,0.90331095,3479.5,3479.4,0.1205647]
[1721084288723,0.90331095,3479.6,3479.4,0.1205647]
[1721084288901,0.50469841,3479.5,3479.4,0.1205647]
[1721084289096,1.40799355,3479.5,3479.4,0.1205647]
[1721084289302,0.50469841,3479.5,3479.4,0.1205647]
[1721084289501,6.83683433,3479.5,3479.4,0.1205647]
[1721084289833,13.2226472,3479.5,3479.4,0.1205647]
[1721084290033,16.16540642,3479.5,3479.4,0.1205647]
[1721084290197,13.29143642,3479.5,3479.4,0.1205647]
[1721084290403,15.09780783,3479.5,3479.4,0.1205647]
[1721084290603,16.9249368,3479.5,3479.4,0.1205647]
[1721084291030,11.95669539,3479.5,3479.4,0.1205647]
[1721084291434,11.4003618,3479.5,3479.4,0.1205647]
[1721084291839,13.76269017,3479.5,3479.4,0.1205647]
[1721084292046,13.7624023,3479.5,3479.4,0.1205647]
[1721084292203,11.956436,3479.5,3479.4,0.1205647]
[1721084292548,11.95632875,3479.5,3479.4,0.1205647]
[1721084292899,11.40043895,3479.5,3479.4,0.1205647]
[1721084293124,8.37043895,3479.5,3479.4,0.1205647]
[1721084293323,9.87495945,3479.5,3479.4,0.1205647]
[1721084293742,5.04783048,3479.5,3479.4,0.1205647]
[1721084293952,2.6943273,3479.5,3479.4,0.1205647]
[1721084294120,2.63708652,3479.5,3479.4,0.1205647]
[1721084294443,2.95538905,3479.5,3479.4,0.1205647]
[1721084294755,2.89814827,3479.5,3479.4,0.1205647]
[1721084294936,4.13044,3479.5,3479.4,0.1205647]
[1721084295318,3.48872427,3479.5,3479.4,0.1205647]
[1721084295547,4.13040248,3479.5,3479.4,0.1205647]
[1721084295721,4.13040157,3479.5,3479.4,0.1205647]
[1721084296051,0.88607977,3479.5,3479.4,0.1205647]
[1721084296213,1.14713213,3479.5,3479.4,0.1205647]
[1721084296424,1.78876824,3479.5,3479.4,0.1205647]
[1721084296619,0.88607977,3479.5,3479.4,0.1205647]
[1721084296924,1.19817499,3479.5,3479.4,0.1205647]
[1721084297458,0.29548652,3479.5,3479.4,0.1205647]
[1721084297765,0.29548652,3479.5,3479.4,0.6705647]
[1721084299256,0.29548652,3479.5,3479.4,0.1205647]
[1721084299435,0.29548652,3479.5,3479.4,0.6705647]
[1721084300040,0.29548652,3479.5,3479.4,0.1205647]
[1721084300365,0.72537969,3479.5,3479.4,0.1205647]
[1721084300559,0.29548652,3479.5,3479.4,0.1205647]
[1721084302662,0.897249,3479.5,3479.4,0.1205647]
[1721084303029,0.29548652,3479.5,3479.4,0.1205647]
[1721084304283,0.29548652,3479.5,3479.4,3.5446147]
[1721084304462,0.29548652,3479.5,3479.4,6.4186647]
[1721084304666,0.60176248,3480.4,3479.7,2.8738]
[1721084304994,0.295464,3480.1,3479.8,0.55]
[1721084305275,0.295464,3480.1,3479.8,3.4237]
[1721084305942,0.295464,3480.1,3479.8,0.55]
[1721084306141,0.295464,3480.1,3479.6,0.55]
[1721084306382,0.295464,3480.1,3479.7,0.47858212]
[1721084306555,0.295464,3480.1,3479.8,0.55]
[1721084306960,0.295464,3480.1,3479.8,3.42371]
[1721084307856,0.295464,3480.1,3479.9,2.87364]
[1721084308064,0.29963056,3480.6,3480.0,2.9036]
[1721084308252,0.29541942,3480.7,3480.1,3.45691056]
[1721084308557,0.29541942,3480.7,3480.2,0.55]
[1721084308875,0.8971819,3480.7,3480.2,0.55]
[1721084309080,0.8971819,3480.7,3479.4,0.1205647]
[1721084309081,0.60176248,3480.4,3479.4,0.1205647]
[1721084309284,0.60176248,3479.7,3479.4,0.1205647]
[1721084309579,0.65900326,3479.7,3479.4,0.1205647]
[1721084309777,0.60176248,3479.6,3479.4,0.1205647]
[1721084309938,0.60176248,3479.5,3479.4,0.1205647]
[1721084310894,1.47298779,3479.5,3479.4,0.1205647]
[1721084311088,3.2763753,3479.5,3479.4,0.1205647]
[1721084311444,6.2763753,3479.5,3479.4,0.1205647]
[1721084311844,3.03,3479.3,3478.0,7.4]
[1721084312078,3.03,3479.3,3477.6,2.87554]
[1721084312079,0.6018321,3478.7,3477.6,2.87554]
[1721084312278,0.92989733,3478.7,3477.6,2.87554]
[1721084312592,0.6018321,3478.6,3477.6,2.87554]
[1721084312753,0.65907288,3478.5,3477.3,2.87579]
[1721084312957,0.6018321,3478.6,3477.4,2.87562]
[1721084314198,0.60162783,3478.6,3477.5,2.87561]
[1721084314499,0.53435497,3478.6,3477.6,0.55]
[1721084316386,3.23785228,3478.7,3477.6,0.55]
[1721084317000,0.05724078,3478.6,3477.6,0.55]
[1721084317166,0.05724078,3478.5,3477.2,2.87584]
[1721084317362,0.65850454,3478.5,3477.3,0.55]
[1721084317579,0.05724078,3478.5,3477.3,0.55]
[1721084317892,0.72266246,3478.4,3477.3,0.55]
[1721084318553,0.29561537,3478.3,3477.3,0.55]
[1721084318995,0.29561537,3478.3,3477.3,3.42577]
[1721084319190,0.29561537,3478.3,3477.3,0.55]
[1721084319395,0.29561537,3478.3,3477.5,2.87558]
[1721084319699,0.29561537,3478.3,3477.1,0.55]
[1721084319700,0.29561537,3478.3,3477.6,3.713038]
[1721084319905,0.29561537,3478.3,3477.6,0.55]
[1721084320220,0.29561537,3478.3,3477.4,3.42569]
[1721084320394,0.29561537,3478.3,3477.6,2.87547]
[1721084320596,0.29561537,3478.3,3477.7,0.55]
[1721084321043,0.29561537,3478.3,3477.0,9.7006]
[1721084321044,0.29561537,3478.3,3477.5,0.55]
[1721084321237,0.29561537,3478.3,3477.4,0.55]
[1721084321532,0.35285615,3478.3,3477.4,0.55]
[1721084322394,0.29561537,3478.3,3477.4,0.55]
[1721084323705,0.05724078,3478.2,3477.4,0.55]
[1721084323906,0.05724078,3478.2,3477.2,0.55]
[1721084325251,0.29561537,3478.3,3477.2,0.55]
[1721084325460,0.29561537,3478.3,3477.3,2.87579]
[1721084325664,0.29561537,3478.3,3477.4,0.55]
[1721084326451,0.66086588,3478.3,3477.4,0.55]
[1721084326658,0.29561537,3478.3,3477.4,0.55]
[1721084327262,0.05724078,3478.2,3477.4,0.55]
[1721084327557,0.05724078,3478.2,3477.2,0.55]
[1721084328134,0.29561537,3478.3,3477.2,0.55]
[1721084328532,0.05724078,3478.2,3477.2,0.55]
[1721084329217,0.05724078,3478.2,3477.2,1.920206]
[1721084329716,0.29561537,3478.3,3477.2,1.920206]
[1721084330521,0.05724078,3478.2,3477.2,1.920206]
[1721084330760,2.3031,3478.1,3477.2,0.55]
[1721084331065,0.05724078,3478.0,3477.2,0.55]
[1721084331228,0.05724078,3478.0,3477.1,0.55]
[1721084331759,0.29563886,3477.9,3477.1,0.55]
[1721084331972,0.05724078,3477.8,3477.1,0.55]
[1721084332143,0.05724078,3477.8,3477.0,0.55]
[1721084332339,0.32283874,3477.8,3477.0,0.55]
[1721084332539,0.05724078,3477.7,3476.9,3.42611]
[1721084333728,0.05724078,3477.7,3476.9,0.55]
[1721084334231,0.05724078,3477.7,3476.4,12.95147]
[1721084334542,0.05724078,3477.6,3476.4,5.55147]
[1721084334729,0.05724078,3477.6,3476.4,6.354707]
[1721084335559,0.05724078,3477.7,3476.4,6.354707]
[1721084335766,0.05724078,3477.7,3476.6,2.87636]
[1721084336475,2.2979,3477.6,3476.7,0.55]
[1721084336768,2.2979,3477.6,3476.4,3.679707]
[1721084336769,0.31931465,3477.5,3476.4,2.87647]
[1721084336970,0.31931465,3477.5,3475.9,9.9236647]
[1721084336971,0.31931465,3477.5,3476.2,2.87665]
[1721084337173,3.31931465,3477.5,3476.2,2.87665]
[1721084337329,0.92179515,3477.4,3476.2,2.87665]
[1721084337535,0.05724078,3477.3,3476.2,2.87665]
[1721084337747,0.05724078,3477.3,3476.3,2.87661]
[1721084338152,0.97903593,3477.4,3476.3,2.87661]
[1721084338472,0.92179515,3477.4,3476.4,0.55]
[1721084338778,0.6481769,3477.3,3476.4,0.55]
[1721084338971,0.26207387,3477.5,3476.4,0.55]
[1721084339954,0.29962747,3477.6,3476.4,0.55]
[1721084340252,0.29962747,3477.6,3477.0,2.87603]
[1721084340473,0.29962747,3477.6,3477.1,0.55]
[1721084340783,0.29563886,3477.9,3477.1,0.55]
[1721084340990,0.55843682,3477.9,3477.1,0.55]
[1721084341180,0.55843682,3477.9,3476.9,3.42611]
[1721084342082,0.29563886,3477.9,3476.9,0.55]
[1721084342257,0.35287964,3477.9,3476.9,3.42611]
[1721084343418,0.35287964,3477.9,3476.9,0.55]
[1721084343565,0.35287964,3477.9,3476.9,3.42611]
[1721084346452,0.35287964,3477.9,3477.0,2.87604]
[1721084346999,0.6156776,3477.9,3476.9,0.55]
[1721084347298,0.55843682,3477.9,3477.0,2.87602]
[1721084347603,0.35287964,3477.9,3477.0,2.87602]
[1721084349391,0.35287964,3477.9,3476.9,3.42612]
[1721084349592,0.35287964,3477.9,3476.9,0.55]
[1721084349762,0.35287964,3477.9,3476.7,3.42629]
[1721084350601,0.35287964,3477.9,3477.0,2.87604]
[1721084351470,2.3278,3477.8,3476.8,2.87614]
[1721084351666,2.3278,3477.8,3476.9,0.55]
[1721084351879,0.05724078,3477.7,3476.6,2.87636]
[1721084352208,0.05724078,3477.7,3476.7,0.55]
[1721084353287,0.65721421,3477.7,3476.7,0.55]
[1721084353499,0.41806132,3477.6,3476.7,0.55]
[1721084354071,0.29571327,3477.5,3476.7,3.42628]
[1721084354272,0.29571327,3477.5,3476.9,2.87607]
[1721084354582,0.29571327,3477.5,3477.2,2.87587]
[1721084354784,0.29571327,3477.5,3477.3,0.55]
[1721084355103,0.29571327,3477.5,3477.4,0.342587]
[1721084355668,0.29571327,3477.5,3477.4,3.218297]
[1721084355972,0.60213824,3478.4,3477.7,2.87542]
[1721084356172,0.60213824,3478.5,3477.8,0.55]
[1721084356394,0.29561028,3478.1,3477.8,3.42531]
[1721084356597,0.29561028,3478.1,3477.9,0.342531]
[1721084356918,0.29561028,3478.1,3477.5,0.55]
[1721084358724,0.29561028,3478.1,3477.5,3.42562]
[1721084358871,0.29561028,3478.1,3477.5,0.55]
[1721084359077,0.29561028,3478.1,3477.5,3.4256]
[1721084359510,0.29561028,3478.1,3477.6,2.87554]
[1721084359723,0.29561028,3478.1,3478.0,2.87521]
[1721084360008,0.29561028,3478.1,3478.0,3.42521]
[1721084361209,0.29561028,3478.1,3478.0,0.55]
[1721084361587,0.29561028,3478.1,3478.0,3.42521]
[1721084362102,0.29561028,3478.1,3478.0,0.55]
[1721084362406,0.29561028,3478.1,3478.0,1.21775527]
[1721084362618,0.29561028,3478.1,3478.0,0.66775527]
[1721084362818,0.29561028,3478.1,3477.7,3.2522727]
[1721084363027,0.29561028,3478.1,3477.8,0.55]
[1721084364332,0.29561028,3478.1,3477.5,2.87557]
[1721084364620,0.29561028,3478.1,3477.6,0.55]
[1721084365033,0.29561028,3478.1,3477.5,0.55]
[1721084365187,2.46584078,3478.0,3476.9,2.87609]
[1721084365394,0.9388418,3477.9,3477.1,2.87594]
[1721084365748,3.01106225,3478.0,3477.1,2.87594]
[1721084366083,0.60246225,3477.9,3477.1,2.87594]
[1721084366499,3.06830303,3478.0,3477.1,2.87594]
[1721084366701,3.01106225,3478.0,3477.1,2.87594]
[1721084366932,0.60246225,3477.9,3477.1,2.87594]
[1721084367225,0.60246225,3477.8,3477.1,3.451143]
[1721084367402,0.60246225,3477.8,3477.2,0.55]
[1721084367810,0.60246225,3477.7,3477.2,0.55]
[1721084367990,0.89817672,3477.7,3477.1,0.55]
[1721084368192,0.60246225,3477.6,3477.1,0.55]
[1721084368495,0.89817672,3477.7,3477.1,0.55]
[1721084369629,0.89817672,3477.7,3477.1,4.056132]
[1721084369791,0.29571447,3477.7,3477.2,2.87587]
[1721084370189,0.29571447,3477.7,3477.4,2.87566]
[1721084370740,0.29571447,3477.7,3477.5,3.42562]
[1721084371596,0.29571447,3477.7,3477.6,2.87554]
[1721084371792,0.29571447,3477.7,3477.6,4.055656]
[1721084372303,0.29571447,3477.7,3477.6,1.180116]
[1721084372705,0.29571447,3477.7,3477.6,4.055656]
[1721084373918,0.29571447,3477.7,3477.6,1.180116]
[1721084374099,0.29571447,3477.7,3477.6,0.55]
[1721084374302,0.29571447,3477.7,3477.5,3.42561]
[1721084374939,0.29571447,3477.7,3477.6,2.87554]
[1721084375100,0.29571447,3477.7,3477.6,3.42554]
[1721084377038,0.29571447,3477.7,3477.6,6.30108]
[1721084377200,0.60246225,3478.7,3478.1,2.87505]
[1721084377400,0.60246225,3478.8,3478.2,3.42504]
[1721084377603,0.29562289,3478.5,3478.2,3.42504]
[1721084379029,0.29562289,3478.5,3478.4,2.87488]
[1721084379232,0.29562289,3478.5,3478.4,1.179998]
[1721084379826,0.29562289,3478.5,3478.4,4.054878]
[1721084381763,0.29562289,3478.5,3478.4,6.929758]
[1721084386947,0.29562289,3478.5,3478.4,9.804638]
[1721084387157,2.441,3479.8,3479.4,2.87398]
[1721084387346,2.6851,3479.8,3479.5,0.55]
[1721084387690,0.29939442,3479.7,3479.5,0.55]
[1721084388527,0.29939442,3479.7,3479.3,0.55]
[1721084389325,0.29939442,3479.7,3479.1,3.42429]
[1721084390829,0.29939442,3479.7,3479.2,2.87419]
[1721084391138,0.29939442,3479.7,3479.3,0.55]
[1721084391528,0.29939442,3479.7,3479.3,3.42412]
[1721084391936,0.29939442,3479.7,3479.5,2.87397]
[1721084392242,0.29939442,3479.7,3479.6,0.55]
[1721084393443,0.29939442,3479.7,3479.4,0.55]
[1721084394056,0.29939442,3479.7,3479.4,3.424]
[1721084394260,0.29939442,3479.7,3479.4,4.1167928]
[1721084394595,0.29939442,3479.7,3479.5,2.93139409]
[1721084394755,0.29939442,3479.7,3479.6,3.42389]
[1721084401678,0.29939442,3479.7,3479.6,6.29778]
[1721084403225,0.29939442,3479.7,3479.6,9.17167]
[1721084403505,0.29940462,3480.5,3480.3,2.87329]
[1721084403700,0.29940462,3480.5,3480.4,0.55]
[1721084404121,0.29940462,3480.5,3480.2,0.55]